[Event "Titled Tuesday Blitz February 07 Late 2023"]
[White "Bilan, Danila"]
[Black "Martinez Ramirez, Lennis"]
[WhiteFideId "24161918"]
[BlackFideId "3509079"]
[WhiteElo "2303"]
[BlackElo "2426"]
[Result "0-1"]
[Round "06"]
[TimeControl "180+2"]
[Date "2023.02.07"]
[WhiteClock "0:00:08"]
[BlackClock "0:01:14"]

1. d4 {[%clk 0:03:00]}  e6 {[%clk 0:02:59]} 2. Nf3 {[%clk 0:03:00]}  b6 {[%clk 0:02:58]} 3. g3 {[%clk 0:03:00]}  Bb7 {[%clk 0:02:58]} 4. Bg2 {[%clk 0:03:01]}  f5 {[%clk 0:02:58]} 5. c4 {[%clk 0:03:01]}  Nf6 {[%clk 0:02:58]} 6. Nc3 {[%clk 0:02:57]}  Bb4 {[%clk 0:02:58]} 7. Qb3 {[%clk 0:02:54]}  Nc6 {[%clk 0:02:53]} 8. O-O {[%clk 0:02:47]}  Bxc3 {[%clk 0:02:49]} 9. Qxc3 {[%clk 0:02:46]}  Ne4 {[%clk 0:02:42]} 10. Qc2 {[%clk 0:02:39]}  O-O {[%clk 0:02:41]} 11. b3 {[%clk 0:02:34]}  a5 {[%clk 0:02:41]} 12. Bb2 {[%clk 0:02:29]}  d6 {[%clk 0:02:35]} 13. Nd2 {[%clk 0:02:25]}  Nb4 {[%clk 0:02:34]} 14. Qd1 {[%clk 0:02:21]}  Qf6 {[%clk 0:02:19]} 15. a3 {[%clk 0:02:13]}  Na6 {[%clk 0:02:19]} 16. Qc2 {[%clk 0:01:55]}  d5 {[%clk 0:02:19]} 17. f3 {[%clk 0:01:49]}  Nd6 {[%clk 0:02:17]} 18. e4 {[%clk 0:01:47]}  Qg6 {[%clk 0:02:08]} 19. e5 {[%clk 0:01:31]}  Nf7 {[%clk 0:02:08]} 20. f4 {[%clk 0:01:26]}  Rfd8 {[%clk 0:02:04]} 21. Bc3 {[%clk 0:01:22]}  c5 {[%clk 0:02:03]} 22. dxc5 {[%clk 0:01:11]}  Nxc5 {[%clk 0:02:03]} 23. b4 {[%clk 0:01:08]}  Ne4 {[%clk 0:02:03]} 24. Nxe4 {[%clk 0:01:04]}  fxe4 {[%clk 0:02:02]} 25. cxd5 {[%clk 0:01:04]}  Bxd5 {[%clk 0:01:54]} 26. Rfe1 {[%clk 0:00:58]}  Rac8 {[%clk 0:01:53]} 27. Qb2 {[%clk 0:00:55]}  a4 {[%clk 0:01:50]} 28. Bd4 {[%clk 0:00:52]}  b5 {[%clk 0:01:49]} 29. Bc5 {[%clk 0:00:41]}  Nh6 {[%clk 0:01:49]} 30. Qe2 {[%clk 0:00:40]}  Nf5 {[%clk 0:01:44]} 31. Rad1 {[%clk 0:00:28]}  e3 {[%clk 0:01:45]} 32. Bxe3 {[%clk 0:00:17]}  Nxe3 {[%clk 0:01:38]} 33. Qxe3 {[%clk 0:00:16]}  Bxg2 {[%clk 0:01:35]} 34. Rxd8+ {[%clk 0:00:16]}  Rxd8 {[%clk 0:01:34]} 35. Kxg2 {[%clk 0:00:17]}  Rd3 {[%clk 0:01:31]} 36. Qb6 {[%clk 0:00:14]}  Rd2+ {[%clk 0:01:31]} 37. Kg1 {[%clk 0:00:11]}  h5 {[%clk 0:01:31]} 38. Qe3 {[%clk 0:00:07]}  Qc2 {[%clk 0:01:30]} 39. Qe4 {[%clk 0:00:07]}  Qb2 {[%clk 0:01:20]} 40. Qa8+ {[%clk 0:00:07]}  Kh7 {[%clk 0:01:19]} 41. Qe4+ {[%clk 0:00:07]}  Kh6 {[%clk 0:01:20]} 42. f5 {[%clk 0:00:08]}  exf5 {[%clk 0:01:15]} 43. Qc6+ {[%clk 0:00:08]}  g6 {[%clk 0:01:15]} 44. e6 {[%clk 0:00:08]}  Qd4+ {[%clk 0:01:14]} 45. Kh1 {[%clk 0:00:08]}  Qf2 {[%clk 0:01:14]} 0-1


[Site "https://www.chess.com"]

[Event "Titled Tuesday Blitz February 07 Late 2023"]
[White "Klose, Eli"]
[Black "Sarkar, Justin"]
[WhiteFideId "16242955"]
[BlackFideId "2010011"]
[WhiteElo "1519"]
[BlackElo "2309"]
[Result "1/2-1/2"]
[Round "06"]
[TimeControl "180+2"]
[Date "2023.02.07"]
[WhiteClock "0:00:30"]
[BlackClock "0:00:15"]

1. e4 {[%clk 0:02:50]}  e5 {[%clk 0:02:57]} 2. Nf3 {[%clk 0:02:48]}  Nc6 {[%clk 0:02:57]} 3. d4 {[%clk 0:02:49]}  exd4 {[%clk 0:02:55]} 4. Bc4 {[%clk 0:02:43]}  Nf6 {[%clk 0:02:53]} 5. O-O {[%clk 0:02:43]}  Nxe4 {[%clk 0:02:36]} 6. Re1 {[%clk 0:02:42]}  d5 {[%clk 0:02:35]} 7. Bxd5 {[%clk 0:02:42]}  Qxd5 {[%clk 0:02:35]} 8. Nc3 {[%clk 0:02:43]}  Qh5 {[%clk 0:02:32]} 9. Nxe4 {[%clk 0:02:40]}  Be6 {[%clk 0:02:30]} 10. Bg5 {[%clk 0:02:38]}  Bd6 {[%clk 0:02:26]} 11. Nxd6+ {[%clk 0:02:38]}  cxd6 {[%clk 0:02:26]} 12. Bf4 {[%clk 0:02:38]}  Qd5 {[%clk 0:02:23]} 13. c3 {[%clk 0:02:36]}  O-O {[%clk 0:02:16]} 14. Nxd4 {[%clk 0:02:25]}  Nxd4 {[%clk 0:02:14]} 15. Qxd4 {[%clk 0:02:26]}  Qxd4 {[%clk 0:02:13]} 16. cxd4 {[%clk 0:02:24]}  Rfd8 {[%clk 0:02:05]} 17. Rac1 {[%clk 0:02:23]}  Rac8 {[%clk 0:01:48]} 18. a3 {[%clk 0:02:16]}  Rxc1 {[%clk 0:01:37]} 19. Rxc1 {[%clk 0:02:16]}  Rc8 {[%clk 0:01:37]} 20. Rxc8+ {[%clk 0:02:15]}  Bxc8 {[%clk 0:01:37]} 21. Bxd6 {[%clk 0:02:15]}  Be6 {[%clk 0:01:37]} 22. f3 {[%clk 0:02:14]}  f6 {[%clk 0:01:35]} 23. Kf2 {[%clk 0:02:10]}  Bd5 {[%clk 0:01:34]} 24. Ke3 {[%clk 0:02:07]}  Kf7 {[%clk 0:01:33]} 25. Kd3 {[%clk 0:02:02]}  Ke6 {[%clk 0:01:32]} 26. Bc5 {[%clk 0:02:03]}  a6 {[%clk 0:01:30]} 27. Kc3 {[%clk 0:01:59]}  g6 {[%clk 0:01:28]} 28. Kb4 {[%clk 0:01:58]}  Kd7 {[%clk 0:01:28]} 29. Bf8 {[%clk 0:01:54]}  Kc6 {[%clk 0:01:25]} 30. Kc3 {[%clk 0:01:54]}  f5 {[%clk 0:01:22]} 31. Kd3 {[%clk 0:01:54]}  Kd7 {[%clk 0:01:22]} 32. Ke3 {[%clk 0:01:52]}  Ke6 {[%clk 0:01:22]} 33. Kf4 {[%clk 0:01:52]}  Kf6 {[%clk 0:01:21]} 34. Bd6 {[%clk 0:01:50]}  g5+ {[%clk 0:01:16]} 35. Kg3 {[%clk 0:01:40]}  h5 {[%clk 0:01:14]} 36. h3 {[%clk 0:01:31]}  f4+ {[%clk 0:01:11]} 37. Kf2 {[%clk 0:01:30]}  h4 {[%clk 0:01:10]} 38. Bc7 {[%clk 0:01:29]}  Kf5 {[%clk 0:01:09]} 39. Ke2 {[%clk 0:01:28]}  Bc4+ {[%clk 0:01:09]} 40. Ke1 {[%clk 0:01:27]}  Bd5 {[%clk 0:01:08]} 41. Bd8 {[%clk 0:01:26]}  Bc4 {[%clk 0:01:08]} 42. Kf2 {[%clk 0:01:22]}  Bd5 {[%clk 0:01:07]} 43. Ke2 {[%clk 0:01:23]}  Bc4+ {[%clk 0:01:07]} 44. Ke1 {[%clk 0:01:23]}  Bd5 {[%clk 0:01:07]} 45. Be7 {[%clk 0:01:16]}  Bc4 {[%clk 0:01:06]} 46. Kd2 {[%clk 0:00:45]}  Bf1 {[%clk 0:01:04]} 47. d5 {[%clk 0:00:44]}  Bxg2 {[%clk 0:00:58]} 48. d6 {[%clk 0:00:44]}  Ke6 {[%clk 0:00:56]} 49. Ke2 {[%clk 0:00:40]}  Bxh3 {[%clk 0:00:50]} 50. Bxg5 {[%clk 0:00:39]}  Kxd6 {[%clk 0:00:48]} 51. Bxf4+ {[%clk 0:00:39]}  Ke6 {[%clk 0:00:45]} 52. Bg5 {[%clk 0:00:40]}  Bf5 {[%clk 0:00:43]} 53. Bxh4 {[%clk 0:00:39]}  a5 {[%clk 0:00:41]} 54. Kd2 {[%clk 0:00:30]}  b5 {[%clk 0:00:39]} 55. Kc3 {[%clk 0:00:28]}  Kd5 {[%clk 0:00:38]} 56. Bd8 {[%clk 0:00:27]}  a4 {[%clk 0:00:37]} 57. f4 {[%clk 0:00:24]}  Be4 {[%clk 0:00:36]} 58. Bc7 {[%clk 0:00:23]}  Bf5 {[%clk 0:00:36]} 59. Kb4 {[%clk 0:00:20]}  Kc6 {[%clk 0:00:36]} 60. Be5 {[%clk 0:00:20]}  Be4 {[%clk 0:00:34]} 61. Bc3 {[%clk 0:00:20]}  Bf5 {[%clk 0:00:33]} 62. Bf6 {[%clk 0:00:20]}  Be4 {[%clk 0:00:33]} 63. Bd8 {[%clk 0:00:20]}  Bf5 {[%clk 0:00:32]} 64. Kc3 {[%clk 0:00:21]}  Kd5 {[%clk 0:00:31]} 65. Kb4 {[%clk 0:00:21]}  Kc6 {[%clk 0:00:31]} 66. Ba5 {[%clk 0:00:22]}  Be4 {[%clk 0:00:29]} 67. Kc3 {[%clk 0:00:22]}  Kd5 {[%clk 0:00:29]} 68. Kd2 {[%clk 0:00:22]}  Bf5 {[%clk 0:00:27]} 69. Ke3 {[%clk 0:00:22]}  Be6 {[%clk 0:00:26]} 70. Kf3 {[%clk 0:00:22]}  Bf5 {[%clk 0:00:24]} 71. Kg3 {[%clk 0:00:22]}  Ke4 {[%clk 0:00:24]} 72. Bc7 {[%clk 0:00:22]}  Be6 {[%clk 0:00:23]} 73. Kh4 {[%clk 0:00:22]}  Kf5 {[%clk 0:00:20]} 74. Kh5 {[%clk 0:00:23]}  Bc4 {[%clk 0:00:19]} 75. Kh6 {[%clk 0:00:22]}  Bd3 {[%clk 0:00:19]} 76. Kg7 {[%clk 0:00:22]}  Bc4 {[%clk 0:00:19]} 77. Kf8 {[%clk 0:00:22]}  Bd3 {[%clk 0:00:19]} 78. Ke7 {[%clk 0:00:22]}  Bc4 {[%clk 0:00:19]} 79. Kd6 {[%clk 0:00:23]}  Bd3 {[%clk 0:00:20]} 80. Kc5 {[%clk 0:00:23]}  Be2 {[%clk 0:00:20]} 81. Kd4 {[%clk 0:00:23]}  Bf1 {[%clk 0:00:19]} 82. Kc3 {[%clk 0:00:23]}  Be2 {[%clk 0:00:19]} 83. Kb4 {[%clk 0:00:24]}  Bf1 {[%clk 0:00:18]} 84. Ka5 {[%clk 0:00:25]}  Be2 {[%clk 0:00:18]} 85. Kb6 {[%clk 0:00:26]}  Bf1 {[%clk 0:00:17]} 86. Kc5 {[%clk 0:00:27]}  Be2 {[%clk 0:00:17]} 87. Kb4 {[%clk 0:00:28]}  Bf1 {[%clk 0:00:17]} 88. b3 {[%clk 0:00:29]}  axb3 {[%clk 0:00:17]} 89. Kxb3 {[%clk 0:00:27]}  Be2 {[%clk 0:00:18]} 90. Kc3 {[%clk 0:00:28]}  Bd1 {[%clk 0:00:17]} 91. Kd2 {[%clk 0:00:28]}  Ba4 {[%clk 0:00:17]} 92. Kc3 {[%clk 0:00:28]}  Ke4 {[%clk 0:00:17]} 93. Bb8 {[%clk 0:00:28]}  Kf5 {[%clk 0:00:17]} 94. Kd4 {[%clk 0:00:28]}  Bb3 {[%clk 0:00:16]} 95. Kc5 {[%clk 0:00:27]}  Ba4 {[%clk 0:00:16]} 96. Kb4 {[%clk 0:00:28]}  Ke4 {[%clk 0:00:15]} 97. Kc5 {[%clk 0:00:29]}  Kf5 {[%clk 0:00:15]} 98. Be5 {[%clk 0:00:28]}  Ke4 {[%clk 0:00:14]} 99. Bd6 {[%clk 0:00:26]}  Kf5 {[%clk 0:00:14]} 100. Kd5 {[%clk 0:00:27]}  Bd1 {[%clk 0:00:13]} 101. Kd4 {[%clk 0:00:28]}  Be2 {[%clk 0:00:13]} 102. Bb8 {[%clk 0:00:24]}  Bf1 {[%clk 0:00:13]} 103. Kc5 {[%clk 0:00:24]}  Be2 {[%clk 0:00:14]} 104. Ba7 {[%clk 0:00:19]}  Bf1 {[%clk 0:00:14]} 105. Bb6 {[%clk 0:00:20]}  Be2 {[%clk 0:00:14]} 106. Bc7 {[%clk 0:00:21]}  Bf1 {[%clk 0:00:14]} 107. a4 {[%clk 0:00:22]}  bxa4 {[%clk 0:00:14]} 108. Kb4 {[%clk 0:00:22]}  a3 {[%clk 0:00:13]} 109. Kxa3 {[%clk 0:00:22]}  Be2 {[%clk 0:00:13]} 110. Be5 {[%clk 0:00:22]}  Bf3 {[%clk 0:00:13]} 111. Bb8 {[%clk 0:00:23]}  Be4 {[%clk 0:00:14]} 112. Kb4 {[%clk 0:00:24]}  Bf3 {[%clk 0:00:14]} 113. Kc3 {[%clk 0:00:24]}  Be4 {[%clk 0:00:15]} 114. Kd4 {[%clk 0:00:25]}  Bf3 {[%clk 0:00:14]} 115. Ke3 {[%clk 0:00:26]}  Be4 {[%clk 0:00:14]} 116. Kf2 {[%clk 0:00:27]}  Bc6 {[%clk 0:00:15]} 117. Kg3 {[%clk 0:00:28]}  Bd5 {[%clk 0:00:15]} 118. Kh4 {[%clk 0:00:28]}  Bc6 {[%clk 0:00:15]} 119. Kh5 {[%clk 0:00:29]}  Bd5 {[%clk 0:00:16]} 120. Kh6 {[%clk 0:00:30]}  Be4 {[%clk 0:00:15]} 121. Kg7 {[%clk 0:00:31]}  Bd5 {[%clk 0:00:16]} 122. Kf8 {[%clk 0:00:32]}  Be4 {[%clk 0:00:15]} 123. Ke7 {[%clk 0:00:32]}  Bd5 {[%clk 0:00:15]} 124. Kd6 {[%clk 0:00:30]}  Kxf4 {[%clk 0:00:15]} 1/2-1/2


[Site "https://www.chess.com"]

[Event "Titled Tuesday Blitz February 07 Late 2023"]
[White "Remolar Gallen, Jose"]
[Black "Czopor, Maciej"]
[WhiteFideId "2215187"]
[BlackFideId "21805431"]
[WhiteElo "2285"]
[BlackElo "2385"]
[Result "1-0"]
[Round "06"]
[TimeControl "180+2"]
[Date "2023.02.07"]
[WhiteClock "0:00:12"]
[BlackClock "0:00:29"]

1. e4 {[%clk 0:03:00]}  g6 {[%clk 0:02:58]} 2. d4 {[%clk 0:03:00]}  c6 {[%clk 0:02:59]} 3. Nc3 {[%clk 0:03:00]}  d5 {[%clk 0:03:00]} 4. e5 {[%clk 0:02:59]}  f6 {[%clk 0:03:00]} 5. f4 {[%clk 0:02:59]}  Nh6 {[%clk 0:02:57]} 6. Nf3 {[%clk 0:02:58]}  Nf7 {[%clk 0:02:56]} 7. Bd3 {[%clk 0:02:52]}  Bg7 {[%clk 0:02:56]} 8. h4 {[%clk 0:02:41]}  Bg4 {[%clk 0:02:47]} 9. h5 {[%clk 0:02:40]}  gxh5 {[%clk 0:02:47]} 10. Ne2 {[%clk 0:02:35]}  Bxf3 {[%clk 0:02:40]} 11. gxf3 {[%clk 0:02:34]}  e6 {[%clk 0:02:40]} 12. Ng3 {[%clk 0:02:21]}  f5 {[%clk 0:02:24]} 13. Nxh5 {[%clk 0:02:18]}  Rg8 {[%clk 0:02:25]} 14. Qe2 {[%clk 0:02:07]}  Nd7 {[%clk 0:02:22]} 15. Bd2 {[%clk 0:01:40]}  Bf8 {[%clk 0:02:22]} 16. O-O-O {[%clk 0:01:37]}  Qb6 {[%clk 0:02:22]} 17. Nf6+ {[%clk 0:01:28]}  Nxf6 {[%clk 0:02:22]} 18. exf6 {[%clk 0:01:29]}  e5 {[%clk 0:01:01]} 19. fxe5 {[%clk 0:00:50]}  O-O-O {[%clk 0:01:01]} 20. Bxf5+ {[%clk 0:00:46]}  Kb8 {[%clk 0:01:01]} 21. Be6 {[%clk 0:00:45]}  Nh6 {[%clk 0:00:48]} 22. Bxh6 {[%clk 0:00:33]}  Rh8 {[%clk 0:00:49]} 23. Bg7 {[%clk 0:00:29]}  Bb4 {[%clk 0:00:34]} 24. Bxh8 {[%clk 0:00:26]}  Rxh8 {[%clk 0:00:35]} 25. Bf5 {[%clk 0:00:21]}  h6 {[%clk 0:00:32]} 26. e6 {[%clk 0:00:21]}  a5 {[%clk 0:00:29]} 27. e7 {[%clk 0:00:19]}  Ka7 {[%clk 0:00:28]} 28. e8=Q {[%clk 0:00:14]}  Rxe8 {[%clk 0:00:28]} 29. Qxe8 {[%clk 0:00:14]}  a4 {[%clk 0:00:29]} 30. a3 {[%clk 0:00:12]}  Bd6 {[%clk 0:00:26]} 31. f7 {[%clk 0:00:10]}  Bf4+ {[%clk 0:00:25]} 32. Kb1 {[%clk 0:00:11]}  Bd6 {[%clk 0:00:25]} 33. f8=Q {[%clk 0:00:10]}  Bxf8 {[%clk 0:00:25]} 34. Qxf8 {[%clk 0:00:11]}  Qb5 {[%clk 0:00:24]} 35. Qc5+ {[%clk 0:00:11]}  Qxc5 {[%clk 0:00:24]} 36. dxc5 {[%clk 0:00:12]}  Ka6 {[%clk 0:00:25]} 37. Rxh6 {[%clk 0:00:12]}  Kb5 {[%clk 0:00:26]} 38. Rh7 {[%clk 0:00:12]}  Kxc5 {[%clk 0:00:26]} 39. Rxb7 {[%clk 0:00:12]}  d4 {[%clk 0:00:27]} 40. Be4 {[%clk 0:00:11]}  Kd6 {[%clk 0:00:28]} 41. Rb6 {[%clk 0:00:11]}  Kc5 {[%clk 0:00:28]} 42. Rxc6+ {[%clk 0:00:11]}  Kb5 {[%clk 0:00:28]} 43. Rxd4 {[%clk 0:00:11]}  Ka5 {[%clk 0:00:29]} 44. Rd5# {[%clk 0:00:12]} 1-0


[Site "https://www.chess.com"]

[Event "Titled Tuesday Blitz February 07 Late 2023"]
[White "Saveliev, Alexei"]
[Black "Rego, Pedro Filipe"]
[WhiteFideId "24128546"]
[BlackFideId "1904310"]
[WhiteElo "2385"]
[BlackElo "2312"]
[Result "1-0"]
[Round "06"]
[TimeControl "180+2"]
[Date "2023.02.07"]
[WhiteClock "0:02:17"]
[BlackClock "0:00:34"]

1. c4 {[%clk 0:03:00]}  Nf6 {[%clk 0:02:57]} 2. Nc3 {[%clk 0:03:01]}  e6 {[%clk 0:02:57]} 3. e4 {[%clk 0:03:01]}  d6 {[%clk 0:02:50]} 4. d4 {[%clk 0:03:01]}  Be7 {[%clk 0:02:46]} 5. f4 {[%clk 0:03:02]}  O-O {[%clk 0:02:45]} 6. Nf3 {[%clk 0:03:02]}  c5 {[%clk 0:02:45]} 7. d5 {[%clk 0:03:03]}  a6 {[%clk 0:02:43]} 8. a4 {[%clk 0:03:02]}  exd5 {[%clk 0:02:41]} 9. cxd5 {[%clk 0:03:03]}  Bg4 {[%clk 0:02:38]} 10. Be2 {[%clk 0:03:03]}  Nbd7 {[%clk 0:02:32]} 11. O-O {[%clk 0:03:04]}  Re8 {[%clk 0:02:29]} 12. h3 {[%clk 0:03:03]}  Bxf3 {[%clk 0:02:28]} 13. Bxf3 {[%clk 0:03:04]}  Bf8 {[%clk 0:02:27]} 14. g4 {[%clk 0:03:04]}  Kh8 {[%clk 0:02:17]} 15. g5 {[%clk 0:03:02]}  Ng8 {[%clk 0:02:16]} 16. Bd2 {[%clk 0:03:01]}  c4 {[%clk 0:02:00]} 17. Be3 {[%clk 0:02:57]}  Rc8 {[%clk 0:01:51]} 18. Qd2 {[%clk 0:02:47]}  Nc5 {[%clk 0:01:50]} 19. Rae1 {[%clk 0:02:48]}  Qd7 {[%clk 0:01:50]} 20. Bg4 {[%clk 0:02:45]}  Qc7 {[%clk 0:01:42]} 21. Bxc8 {[%clk 0:02:45]}  Qxc8 {[%clk 0:01:42]} 22. Bxc5 {[%clk 0:02:43]}  Qxc5+ {[%clk 0:01:41]} 23. Kg2 {[%clk 0:02:42]}  b5 {[%clk 0:01:36]} 24. axb5 {[%clk 0:02:41]}  axb5 {[%clk 0:01:37]} 25. Kf3 {[%clk 0:02:36]}  Ne7 {[%clk 0:01:34]} 26. h4 {[%clk 0:02:35]}  b4 {[%clk 0:01:17]} 27. Ne2 {[%clk 0:02:30]}  Ng6 {[%clk 0:00:52]} 28. Nd4 {[%clk 0:02:31]}  Be7 {[%clk 0:00:42]} 29. h5 {[%clk 0:02:28]}  Nf8 {[%clk 0:00:41]} 30. Rc1 {[%clk 0:02:23]}  Nd7 {[%clk 0:00:37]} 31. Nc6 {[%clk 0:02:20]}  Nb6 {[%clk 0:00:34]} 32. Qxb4 {[%clk 0:02:17]} 1-0


[Site "https://www.chess.com"]

[Event "Titled Tuesday Blitz February 07 Late 2023"]
[White "Shapiro, Viktor"]
[Black "Volkmann, Andre Jordi"]
[WhiteFideId "4175700"]
[BlackFideId "2154463"]
[WhiteElo "2192"]
[BlackElo "2158"]
[Result "1-0"]
[Round "06"]
[TimeControl "180+2"]
[Date "2023.02.07"]
[WhiteClock "0:01:26"]
[BlackClock "0:00:47"]

1. c4 {[%clk 0:03:00]}  Nf6 {[%clk 0:02:58]} 2. Nc3 {[%clk 0:03:01]}  e6 {[%clk 0:02:54]} 3. g3 {[%clk 0:03:01]}  d5 {[%clk 0:02:55]} 4. Bg2 {[%clk 0:03:01]}  Be7 {[%clk 0:02:52]} 5. Nf3 {[%clk 0:03:01]}  O-O {[%clk 0:02:53]} 6. O-O {[%clk 0:03:01]}  b6 {[%clk 0:02:52]} 7. d4 {[%clk 0:03:00]}  Bb7 {[%clk 0:02:52]} 8. Ne5 {[%clk 0:03:00]}  Nbd7 {[%clk 0:02:50]} 9. cxd5 {[%clk 0:03:00]}  Nxd5 {[%clk 0:02:49]} 10. Nxd5 {[%clk 0:02:57]}  Bxd5 {[%clk 0:02:50]} 11. Nc6 {[%clk 0:02:52]}  Qe8 {[%clk 0:02:43]} 12. Bxd5 {[%clk 0:02:52]}  exd5 {[%clk 0:02:43]} 13. Bf4 {[%clk 0:02:50]}  Nf6 {[%clk 0:02:38]} 14. Rc1 {[%clk 0:02:47]}  Bd6 {[%clk 0:02:33]} 15. Bxd6 {[%clk 0:02:46]}  cxd6 {[%clk 0:02:34]} 16. e3 {[%clk 0:02:44]}  Qd7 {[%clk 0:02:26]} 17. b4 {[%clk 0:02:36]}  b5 {[%clk 0:02:22]} 18. a4 {[%clk 0:02:30]}  Rac8 {[%clk 0:02:23]} 19. axb5 {[%clk 0:02:30]}  a6 {[%clk 0:02:20]} 20. Qe2 {[%clk 0:02:24]}  axb5 {[%clk 0:02:20]} 21. Qxb5 {[%clk 0:02:24]}  Qh3 {[%clk 0:02:19]} 22. f3 {[%clk 0:02:21]}  Rfe8 {[%clk 0:02:11]} 23. Qe2 {[%clk 0:02:16]}  Qd7 {[%clk 0:02:07]} 24. b5 {[%clk 0:02:15]}  Qb7 {[%clk 0:01:57]} 25. Qd3 {[%clk 0:02:10]}  Re6 {[%clk 0:01:54]} 26. Rc3 {[%clk 0:02:00]}  Rce8 {[%clk 0:01:52]} 27. Re1 {[%clk 0:01:59]}  h5 {[%clk 0:01:50]} 28. h4 {[%clk 0:01:56]}  Nd7 {[%clk 0:01:41]} 29. Ra3 {[%clk 0:01:50]}  Ra8 {[%clk 0:01:31]} 30. Rea1 {[%clk 0:01:44]}  Rxa3 {[%clk 0:01:09]} 31. Rxa3 {[%clk 0:01:44]}  Nb6 {[%clk 0:01:01]} 32. Ra7 {[%clk 0:01:43]}  Qc8 {[%clk 0:00:51]} 33. Qf5 {[%clk 0:01:28]}  g6 {[%clk 0:00:47]} 34. Qxf7+ {[%clk 0:01:26]} 1-0


[Site "https://www.chess.com"]

[Event "Titled Tuesday Blitz February 07 Late 2023"]
[White "reevecanada"]
[Black "Rustemov, Alexander"]
[BlackFideId "4119002"]
[WhiteElo "2474"]
[BlackElo "2525"]
[Result "0-1"]
[Round "06"]
[TimeControl "180+2"]
[Date "2023.02.07"]
[WhiteClock "0:02:30"]
[BlackClock "0:01:48"]

1. e4 {[%clk 0:03:00]}  e6 {[%clk 0:02:57]} 2. b3 {[%clk 0:03:00]}  d5 {[%clk 0:02:56]} 3. Bb2 {[%clk 0:03:00]}  Nf6 {[%clk 0:02:54]} 4. exd5 {[%clk 0:02:59]}  exd5 {[%clk 0:02:53]} 5. Ne2 {[%clk 0:02:59]}  Bd6 {[%clk 0:02:51]} 6. g3 {[%clk 0:03:00]}  O-O {[%clk 0:02:50]} 7. Bg2 {[%clk 0:03:00]}  Re8 {[%clk 0:02:48]} 8. O-O {[%clk 0:03:00]}  c6 {[%clk 0:02:45]} 9. h3 {[%clk 0:03:00]}  Nbd7 {[%clk 0:02:34]} 10. d4 {[%clk 0:02:58]}  Ne4 {[%clk 0:02:31]} 11. c4 {[%clk 0:02:55]}  Ndf6 {[%clk 0:02:30]} 12. Nbc3 {[%clk 0:02:54]}  Bf5 {[%clk 0:02:29]} 13. Re1 {[%clk 0:02:52]}  Qd7 {[%clk 0:02:26]} 14. g4 {[%clk 0:02:50]}  Bg6 {[%clk 0:02:25]} 15. Nxe4 {[%clk 0:02:48]}  Bxe4 {[%clk 0:02:21]} 16. Ng3 {[%clk 0:02:47]}  Bxg3 {[%clk 0:02:19]} 17. fxg3 {[%clk 0:02:48]}  Bxg2 {[%clk 0:02:19]} 18. Kxg2 {[%clk 0:02:47]}  Ne4 {[%clk 0:02:13]} 19. Qf3 {[%clk 0:02:45]}  Re6 {[%clk 0:02:11]} 20. Re2 {[%clk 0:02:40]}  Rae8 {[%clk 0:02:10]} 21. Rae1 {[%clk 0:02:38]}  h6 {[%clk 0:01:54]} 22. h4 {[%clk 0:02:37]}  Rg6 {[%clk 0:01:50]} 23. Kh3 {[%clk 0:02:35]}  h5 {[%clk 0:01:49]} 24. Qf5 {[%clk 0:02:31]}  hxg4+ {[%clk 0:01:49]} 25. Kg2 {[%clk 0:02:30]}  Qxf5 {[%clk 0:01:48]} 0-1


[Site "https://www.chess.com"]

[Event "Titled Tuesday Blitz February 07 Late 2023"]
[White "Pakleza, Zbigniew"]
[Black "Estrada Nieto, Julian"]
[WhiteFideId "1119290"]
[BlackFideId "5101018"]
[WhiteElo "2494"]
[BlackElo "2215"]
[Result "1-0"]
[Round "06"]
[TimeControl "180+2"]
[Date "2023.02.07"]
[WhiteClock "0:00:04"]
[BlackClock "0:00:03"]

1. g4 {[%clk 0:03:00]}  d5 {[%clk 0:02:50]} 2. Bg2 {[%clk 0:03:01]}  c6 {[%clk 0:02:49]} 3. h3 {[%clk 0:03:00]}  e5 {[%clk 0:02:49]} 4. c4 {[%clk 0:02:59]}  dxc4 {[%clk 0:02:42]} 5. Qc2 {[%clk 0:02:56]}  Be6 {[%clk 0:02:39]} 6. Nf3 {[%clk 0:02:54]}  Bd6 {[%clk 0:02:35]} 7. Na3 {[%clk 0:02:53]}  b5 {[%clk 0:02:30]} 8. b3 {[%clk 0:02:42]}  Qa5 {[%clk 0:02:13]} 9. Qb2 {[%clk 0:01:56]}  Nd7 {[%clk 0:02:10]} 10. bxc4 {[%clk 0:01:45]}  bxc4 {[%clk 0:01:57]} 11. Ng5 {[%clk 0:00:54]}  Rb8 {[%clk 0:01:52]} 12. Qc3 {[%clk 0:00:53]}  Bb4 {[%clk 0:01:43]} 13. Qg3 {[%clk 0:00:40]}  c3 {[%clk 0:01:32]} 14. O-O {[%clk 0:00:40]}  cxd2 {[%clk 0:01:15]} 15. Bxd2 {[%clk 0:00:41]}  Bxd2 {[%clk 0:01:15]} 16. Nxe6 {[%clk 0:00:41]}  fxe6 {[%clk 0:01:14]} 17. Nc4 {[%clk 0:00:40]}  Qc3 {[%clk 0:01:08]} 18. Nxd2 {[%clk 0:00:38]}  Qxd2 {[%clk 0:01:06]} 19. Rfd1 {[%clk 0:00:38]}  Qf4 {[%clk 0:01:05]} 20. Qa3 {[%clk 0:00:25]}  Ngf6 {[%clk 0:00:57]} 21. Bxc6 {[%clk 0:00:22]}  Rd8 {[%clk 0:00:42]} 22. e3 {[%clk 0:00:16]}  Qh6 {[%clk 0:00:31]} 23. Kg2 {[%clk 0:00:15]}  Qg6 {[%clk 0:00:25]} 24. Rac1 {[%clk 0:00:12]}  Nxg4 {[%clk 0:00:20]} 25. hxg4 {[%clk 0:00:09]}  Qxg4+ {[%clk 0:00:20]} 26. Kf1 {[%clk 0:00:09]}  Rf8 {[%clk 0:00:13]} 27. Bxd7+ {[%clk 0:00:08]}  Kf7 {[%clk 0:00:08]} 28. Qa4 {[%clk 0:00:06]}  Qxa4 {[%clk 0:00:05]} 29. Bxa4 {[%clk 0:00:07]}  Kf6 {[%clk 0:00:04]} 30. Rc7 {[%clk 0:00:05]}  Rxd1+ {[%clk 0:00:04]} 31. Bxd1 {[%clk 0:00:06]}  Rd8 {[%clk 0:00:03]} 32. Bb3 {[%clk 0:00:06]}  Rd2 {[%clk 0:00:03]} 33. Rxa7 {[%clk 0:00:06]}  e4 {[%clk 0:00:03]} 34. Ra6 {[%clk 0:00:06]}  h5 {[%clk 0:00:04]} 35. Rxe6+ {[%clk 0:00:06]}  Kg5 {[%clk 0:00:05]} 36. Rxe4 {[%clk 0:00:06]}  g6 {[%clk 0:00:05]} 37. Kg2 {[%clk 0:00:05]}  h4 {[%clk 0:00:05]} 38. Rd4 {[%clk 0:00:06]}  Rb2 {[%clk 0:00:05]} 39. Rd5+ {[%clk 0:00:05]}  Kg4 {[%clk 0:00:04]} 40. Rd4+ {[%clk 0:00:06]}  Kg5 {[%clk 0:00:04]} 41. e4 {[%clk 0:00:06]}  h3+ {[%clk 0:00:03]} 42. Kxh3 {[%clk 0:00:05]}  Rxf2 {[%clk 0:00:03]} 43. Kg3 {[%clk 0:00:05]}  Rb2 {[%clk 0:00:03]} 44. Rd5+ {[%clk 0:00:05]}  Kf6 {[%clk 0:00:04]} 45. Rb5 {[%clk 0:00:05]}  g5 {[%clk 0:00:03]} 46. e5+ {[%clk 0:00:05]}  Ke7 {[%clk 0:00:03]} 47. Rb7+ {[%clk 0:00:05]}  Ke8 {[%clk 0:00:03]} 48. Ba4+ {[%clk 0:00:04]} 1-0


[Site "https://www.chess.com"]